[Event "Early-Titled-Tuesday-Blitz-March-12-2024"]
[Site "Chess.com"]
[Date "2024.03.12"]
[Round "6"]
[White "BeardedNM"]
[Black "RamonManon0g"]
[Result "1/2-1/2"]
[WhiteElo "2240"]
[BlackElo "2401"]
[TimeControl "180+1"]
[EndTime "9:05:02 PDT"]
[Termination "Game drawn by repetition"]

1. e4 {[%clk 0:02:56.6]} 1... c5 {[%clk 0:02:59.7]} 2. Nf3 {[%clk 0:02:56.4]}
2... d6 {[%clk 0:03:00.3]} 3. d4 {[%clk 0:02:56.9]} 3... cxd4 {[%clk 0:03:01.2]}
4. Nxd4 {[%clk 0:02:57.5]} 4... Nf6 {[%clk 0:03:01.8]} 5. Nc3 {[%clk 0:02:58]}
5... a6 {[%clk 0:03:02.4]} 6. Be3 {[%clk 0:02:58.5]} 6... e5 {[%clk 0:03:02.6]}
7. Nb3 {[%clk 0:02:59.1]} 7... Be7 {[%clk 0:03:02.8]} 8. f3 {[%clk 0:02:58.9]}
8... h5 {[%clk 0:03:03.1]} 9. Qd2 {[%clk 0:02:57]} 9... O-O {[%clk 0:03:03.6]}
10. Be2 {[%clk 0:02:56]} 10... Be6 {[%clk 0:03:04.1]} 11. O-O {[%clk 0:02:52.9]}
11... Nbd7 {[%clk 0:03:03.6]} 12. Nd5 {[%clk 0:02:52.5]} 12... Nxd5 {[%clk
0:03:01.9]} 13. exd5 {[%clk 0:02:53.4]} 13... Bf5 {[%clk 0:03:02.5]} 14. c4
{[%clk 0:02:47]} 14... Rc8 {[%clk 0:02:53.7]} 15. Na5 {[%clk 0:02:46.3]} 15...
Rb8 {[%clk 0:02:42.9]} 16. b4 {[%clk 0:02:43.3]} 16... h4 {[%clk 0:02:37.2]} 17.
Rac1 {[%clk 0:02:35.8]} 17... h3 {[%clk 0:02:35.3]} 18. g3 {[%clk 0:02:31]}
18... Nf6 {[%clk 0:02:35.1]} 19. Rfd1 {[%clk 0:02:24]} 19... e4 {[%clk
0:02:30.1]} 20. c5 {[%clk 0:02:17.2]} 20... exf3 {[%clk 0:02:23.5]} 21. Bxf3
{[%clk 0:02:16.7]} 21... Ne4 {[%clk 0:02:15.7]} 22. Qe1 {[%clk 0:01:46.3]} 22...
dxc5 {[%clk 0:01:57.4]} 23. bxc5 {[%clk 0:01:44.1]} 23... Bf6 {[%clk 0:01:57.4]}
24. c6 {[%clk 0:01:35.1]} 24... bxc6 {[%clk 0:01:34.4]} 25. Nxc6 {[%clk
0:01:24.6]} 25... Qd7 {[%clk 0:01:34.4]} 26. Nxb8 {[%clk 0:01:15.5]} 26... Rxb8
{[%clk 0:01:35.3]} 27. Bxe4 {[%clk 0:01:02.5]} 27... Bxe4 {[%clk 0:01:36.2]} 28.
Bf4 {[%clk 0:01:02.4]} 28... Re8 {[%clk 0:01:27.7]} 29. Rc7 {[%clk 0:00:54.9]}
29... Qa4 {[%clk 0:01:22.7]} 30. d6 {[%clk 0:00:36.7]} 30... Bd4+ {[%clk
0:01:19.4]} 31. Rxd4 {[%clk 0:00:27.9]} 31... Qxd4+ {[%clk 0:01:20.3]} 32. Qf2
{[%clk 0:00:28.1]} 32... Qd1+ {[%clk 0:00:43.4]} 33. Qf1 {[%clk 0:00:28]} 33...
Qd4+ {[%clk 0:00:43.2]} 34. Qf2 {[%clk 0:00:27.4]} 34... Qd1+ {[%clk 0:00:32.5]}
35. Qf1 {[%clk 0:00:27.4]} 35... Qd4+ {[%clk 0:00:24.8]} 36. Qf2 {[%clk
0:00:27.3]} 1/2-1/2

[Event "Early-Titled-Tuesday-Blitz-March-12-2024"]
[Site "Chess.com"]
[Date "2024.03.12"]
[Round "6"]
[White "Smoking_Crow"]
[Black "AccioChess"]
[Result "1-0"]
[WhiteElo "2578"]
[BlackElo "2417"]
[TimeControl "180+1"]
[EndTime "9:05:09 PDT"]
[Termination "Smoking_Crow won on time"]

1. c4 {[%clk 0:02:54.6]} 1... c5 {[%clk 0:02:57.4]} 2. b3 {[%clk 0:02:52.2]}
2... Nc6 {[%clk 0:02:57]} 3. Bb2 {[%clk 0:02:52.2]} 3... f5 {[%clk 0:02:56]} 4.
Nf3 {[%clk 0:02:52.6]} 4... Nf6 {[%clk 0:02:56.1]} 5. e3 {[%clk 0:02:50.9]} 5...
e6 {[%clk 0:02:56.4]} 6. Be2 {[%clk 0:02:48.3]} 6... Be7 {[%clk 0:02:56.4]} 7.
O-O {[%clk 0:02:48.4]} 7... O-O {[%clk 0:02:57]} 8. d4 {[%clk 0:02:48.3]} 8...
cxd4 {[%clk 0:02:55.7]} 9. Nxd4 {[%clk 0:02:46.9]} 9... Nxd4 {[%clk 0:02:53.5]}
10. Bxd4 {[%clk 0:02:46.6]} 10... d6 {[%clk 0:02:50.9]} 11. Bb2 {[%clk
0:02:44.7]} 11... e5 {[%clk 0:02:50.9]} 12. Nc3 {[%clk 0:02:43.8]} 12... Be6
{[%clk 0:02:50.4]} 13. Bf3 {[%clk 0:02:43.5]} 13... Qd7 {[%clk 0:02:49.9]} 14.
Qd2 {[%clk 0:02:39.6]} 14... Rac8 {[%clk 0:02:49.1]} 15. Rfd1 {[%clk 0:02:38.6]}
15... Rfd8 {[%clk 0:02:45.3]} 16. e4 {[%clk 0:02:34.6]} 16... f4 {[%clk
0:02:41.4]} 17. Qe2 {[%clk 0:02:30.8]} 17... Qe8 {[%clk 0:02:24.1]} 18. Ba3
{[%clk 0:02:23.7]} 18... a6 {[%clk 0:02:21.9]} 19. Rd3 {[%clk 0:02:20.9]} 19...
g5 {[%clk 0:02:07.6]} 20. h3 {[%clk 0:02:19.9]} 20... h5 {[%clk 0:02:07.1]} 21.
g4 {[%clk 0:02:19]} 21... hxg4 {[%clk 0:01:40.2]} 22. Bxg4 {[%clk 0:02:17.2]}
22... Nxg4 {[%clk 0:01:38.2]} 23. hxg4 {[%clk 0:02:18.1]} 23... b5 {[%clk
0:01:23.2]} 24. cxb5 {[%clk 0:02:17.1]} 24... axb5 {[%clk 0:01:24.1]} 25. f3
{[%clk 0:02:13.7]} 25... Qc6 {[%clk 0:01:23.6]} 26. Bb4 {[%clk 0:02:06.6]} 26...
Rd7 {[%clk 0:00:52.9]} 27. Kg2 {[%clk 0:02:05.3]} 27... Bf8 {[%clk 0:00:48.9]}
28. Rad1 {[%clk 0:02:03.6]} 28... Rcd8 {[%clk 0:00:33.6]} 29. Nd5 {[%clk
0:01:58.7]} 29... Bxd5 {[%clk 0:00:27.4]} 30. exd5 {[%clk 0:01:59.6]} 30... Qb7
{[%clk 0:00:26.9]} 31. Qe4 {[%clk 0:01:58.7]} 31... Rh7 {[%clk 0:00:24.1]} 32.
Qg6+ {[%clk 0:01:57.3]} 32... Qg7 {[%clk 0:00:20.9]} 33. Qxg7+ {[%clk
0:01:54.9]} 33... Kxg7 {[%clk 0:00:21.8]} 34. Rc3 {[%clk 0:01:53]} 34... Kf6
{[%clk 0:00:22]} 35. Rh1 {[%clk 0:01:46.2]} 35... Rdd7 {[%clk 0:00:18.6]} 36.
Rxh7 {[%clk 0:01:44]} 36... Rxh7 {[%clk 0:00:19.5]} 37. Rc8 {[%clk 0:01:42.2]}
37... Be7 {[%clk 0:00:12.8]} 38. Rc6 {[%clk 0:01:37.4]} 38... e4 {[%clk
0:00:12.3]} 39. fxe4 {[%clk 0:01:34.3]} 39... Ke5 {[%clk 0:00:12.5]} 40. Rc7
{[%clk 0:01:33.2]} 40... f3+ {[%clk 0:00:07.4]} 41. Kxf3 {[%clk 0:01:31.4]}
41... Rf7+ {[%clk 0:00:07.5]} 42. Ke2 {[%clk 0:01:30.2]} 42... Kd4 {[%clk
0:00:06.1]} 43. a4 {[%clk 0:01:25.9]} 43... bxa4 {[%clk 0:00:05.8]} 44. bxa4
{[%clk 0:01:26.8]} 44... Kxe4 {[%clk 0:00:02.6]} 45. a5 {[%clk 0:01:27]} 45...
Kxd5 {[%clk 0:00:02.8]} 46. a6 {[%clk 0:01:27.2]} 46... Ke6 {[%clk 0:00:02.6]}
47. a7 {[%clk 0:01:27.4]} 47... Rf8 {[%clk 0:00:02.9]} 48. Rb7 {[%clk
0:01:27.1]} 48... Ra8 {[%clk 0:00:03.1]} 49. Bd2 {[%clk 0:01:26.2]} 1-0

[Event "Early-Titled-Tuesday-Blitz-March-12-2024"]
[Site "Chess.com"]
[Date "2024.03.12"]
[Round "6"]
[White "Practical-Play"]
[Black "rhwr"]
[Result "0-1"]
[WhiteElo "2412"]
[BlackElo "2302"]
[TimeControl "180+1"]
[EndTime "9:05:09 PDT"]
[Termination "rhwr won by resignation"]

1. e4 {[%clk 0:02:57]} 1... c5 {[%clk 0:02:59.6]} 2. b4 {[%clk 0:02:53.6]} 2...
e5 {[%clk 0:02:58.8]} 3. bxc5 {[%clk 0:02:42.8]} 3... Bxc5 {[%clk 0:02:57.3]} 4.
Nf3 {[%clk 0:02:43.7]} 4... Nc6 {[%clk 0:02:56.4]} 5. Bc4 {[%clk 0:02:39.7]}
5... d6 {[%clk 0:02:54.8]} 6. h3 {[%clk 0:02:24.9]} 6... Nf6 {[%clk 0:02:53]} 7.
Nc3 {[%clk 0:02:20.3]} 7... O-O {[%clk 0:02:52.9]} 8. O-O {[%clk 0:02:19.6]}
8... a6 {[%clk 0:02:53.4]} 9. a4 {[%clk 0:02:18.9]} 9... Qe7 {[%clk 0:02:41.8]}
10. d3 {[%clk 0:02:17.1]} 10... h6 {[%clk 0:02:40.7]} 11. Be3 {[%clk 0:02:00.1]}
11... Nd4 {[%clk 0:02:34.1]} 12. Nd2 {[%clk 0:01:56.4]} 12... Rb8 {[%clk
0:02:30.3]} 13. a5 {[%clk 0:01:55.7]} 13... Be6 {[%clk 0:02:29.8]} 14. Bxe6
{[%clk 0:01:52.1]} 14... fxe6 {[%clk 0:02:29.6]} 15. Nc4 {[%clk 0:01:52.8]}
15... Qc7 {[%clk 0:02:18.4]} 16. Kh1 {[%clk 0:01:49.6]} 16... d5 {[%clk
0:02:17.5]} 17. Nd2 {[%clk 0:01:47.3]} 17... Rbc8 {[%clk 0:01:48.7]} 18. Na4
{[%clk 0:01:31.9]} 18... Be7 {[%clk 0:01:26.6]} 19. c3 {[%clk 0:01:24]} 19...
Nb5 {[%clk 0:01:25.7]} 20. c4 {[%clk 0:01:17.4]} 20... d4 {[%clk 0:01:23.1]} 21.
cxb5 {[%clk 0:01:14.6]} 21... dxe3 {[%clk 0:01:22.7]} 22. fxe3 {[%clk
0:01:14.2]} 22... axb5 {[%clk 0:01:22.3]} 23. Nb6 {[%clk 0:01:14.1]} 23... Rcd8
{[%clk 0:01:21.5]} 24. Qb3 {[%clk 0:01:13.3]} 24... Qd6 {[%clk 0:01:14.7]} 25.
Qxb5 {[%clk 0:01:01.6]} 25... Qxd3 {[%clk 0:01:12.2]} 26. Nbc4 {[%clk
0:00:47.8]} 26... Nxe4 {[%clk 0:01:04.5]} 27. Rxf8+ {[%clk 0:00:37.4]} 27...
Rxf8 {[%clk 0:01:01.3]} 28. Nxe4 {[%clk 0:00:34.9]} 28... Qxe4 {[%clk
0:01:00.5]} 29. Nxe5 {[%clk 0:00:35.8]} 29... Bd6 {[%clk 0:00:55.3]} 30. Nc4
{[%clk 0:00:20.5]} 30... Rf2 {[%clk 0:00:50.6]} 31. Rg1 {[%clk 0:00:19.1]} 31...
Bg3 {[%clk 0:00:47.1]} 32. Qe8+ {[%clk 0:00:12.5]} 32... Kh7 {[%clk 0:00:46.6]}
33. Qc8 {[%clk 0:00:11.9]} 33... Rc2 {[%clk 0:00:43]} 34. Nd6 {[%clk 0:00:10.8]}
34... Bxd6 {[%clk 0:00:40.7]} 0-1

[Event "Early-Titled-Tuesday-Blitz-March-12-2024"]
[Site "Chess.com"]
[Date "2024.03.12"]
[Round "6"]
[White "SharapovEvgeny"]
[Black "Meri-Arabidze"]
[Result "0-1"]
[WhiteElo "2524"]
[BlackElo "2712"]
[TimeControl "180+1"]
[EndTime "9:05:19 PDT"]
[Termination "Meri-Arabidze won by resignation"]

1. e4 {[%clk 0:03:00.1]} 1... e5 {[%clk 0:03:00.2]} 2. Nf3 {[%clk 0:03:00]} 2...
Nc6 {[%clk 0:03:00.9]} 3. Bb5 {[%clk 0:03:00.1]} 3... a6 {[%clk 0:03:01.4]} 4.
Ba4 {[%clk 0:02:59.9]} 4... Nf6 {[%clk 0:03:01.7]} 5. d3 {[%clk 0:03:00.2]} 5...
d6 {[%clk 0:03:00.5]} 6. O-O {[%clk 0:02:58.7]} 6... g6 {[%clk 0:03:01]} 7. c3
{[%clk 0:02:58]} 7... Bg7 {[%clk 0:03:01.3]} 8. Re1 {[%clk 0:02:58.2]} 8... O-O
{[%clk 0:03:01.5]} 9. Nbd2 {[%clk 0:02:58.3]} 9... Nd7 {[%clk 0:03:01.6]} 10.
Nf1 {[%clk 0:02:57.9]} 10... Nc5 {[%clk 0:03:01.7]} 11. Bc2 {[%clk 0:02:57.5]}
11... Ne6 {[%clk 0:03:02.3]} 12. Ng3 {[%clk 0:02:54.9]} 12... Qf6 {[%clk
0:02:57.9]} 13. h4 {[%clk 0:02:47.2]} 13... Nf4 {[%clk 0:02:54.3]} 14. d4 {[%clk
0:02:42.1]} 14... Bg4 {[%clk 0:02:51.9]} 15. d5 {[%clk 0:02:31.4]} 15... Nb8
{[%clk 0:02:40.5]} 16. Bxf4 {[%clk 0:02:21.7]} 16... exf4 {[%clk 0:02:35.1]} 17.
Nf1 {[%clk 0:02:15.7]} 17... Bxf3 {[%clk 0:02:27]} 18. Qxf3 {[%clk 0:02:14.7]}
18... Qxh4 {[%clk 0:02:27.6]} 19. g3 {[%clk 0:02:07.1]} 19... fxg3 {[%clk
0:02:27.9]} 20. fxg3 {[%clk 0:02:03]} 20... Qe7 {[%clk 0:02:22.3]} 21. Kg2
{[%clk 0:02:02.7]} 21... Nd7 {[%clk 0:02:22.4]} 22. Ne3 {[%clk 0:02:01.3]} 22...
Ne5 {[%clk 0:02:22.3]} 23. Qf4 {[%clk 0:01:57.3]} 23... h5 {[%clk 0:01:58.2]}
24. Rh1 {[%clk 0:01:55.2]} 24... Qf6 {[%clk 0:01:39.3]} 25. Raf1 {[%clk
0:01:47.1]} 25... Nd7 {[%clk 0:01:39.3]} 26. Nf5 {[%clk 0:01:39.6]} 26... gxf5
{[%clk 0:01:35.8]} 27. Rxh5 {[%clk 0:01:39.2]} 27... Ne5 {[%clk 0:01:18.1]} 28.
exf5 {[%clk 0:01:30.4]} 28... Rae8 {[%clk 0:01:00.1]} 29. g4 {[%clk 0:01:29.6]}
29... Ng6 {[%clk 0:00:48.1]} 30. Qf2 {[%clk 0:01:00.4]} 30... Qe7 {[%clk
0:00:26.9]} 31. g5 {[%clk 0:00:39]} 31... Qe2 {[%clk 0:00:22.1]} 32. f6 {[%clk
0:00:29.8]} 32... Qxh5 {[%clk 0:00:21.9]} 33. fxg7 {[%clk 0:00:25.3]} 33...
Qxg5+ {[%clk 0:00:22.2]} 34. Kh2 {[%clk 0:00:23.4]} 34... Kxg7 {[%clk
0:00:22.5]} 35. Qd4+ {[%clk 0:00:20.6]} 35... Re5 {[%clk 0:00:21.3]} 0-1

[Event "Early-Titled-Tuesday-Blitz-March-12-2024"]
[Site "Chess.com"]
[Date "2024.03.12"]
[Round "6"]
[White "awesomevishesh"]
[Black "GilbertoHernandezAmura"]
[Result "1-0"]
[WhiteElo "2635"]
[BlackElo "2457"]
[TimeControl "180+1"]
[EndTime "9:05:21 PDT"]
[Termination "awesomevishesh won by resignation"]

1. a3 {[%clk 0:03:00.9]} 1... c5 {[%clk 0:02:56.4]} 2. e4 {[%clk 0:02:54.8]}
2... g6 {[%clk 0:02:55.3]} 3. Nf3 {[%clk 0:02:50.5]} 3... Bg7 {[%clk 0:02:55.2]}
4. Bc4 {[%clk 0:02:39]} 4... e6 {[%clk 0:02:49.9]} 5. d4 {[%clk 0:02:33.5]} 5...
cxd4 {[%clk 0:02:45.1]} 6. Nxd4 {[%clk 0:02:33.3]} 6... a6 {[%clk 0:02:42.8]} 7.
O-O {[%clk 0:02:30.1]} 7... Ne7 {[%clk 0:02:42.7]} 8. Nc3 {[%clk 0:02:28.7]}
8... O-O {[%clk 0:02:40.2]} 9. Bg5 {[%clk 0:02:24.8]} 9... Nbc6 {[%clk
0:02:20.9]} 10. Nxc6 {[%clk 0:02:18.2]} 10... bxc6 {[%clk 0:02:21]} 11. Qd6
{[%clk 0:02:13.5]} 11... f6 {[%clk 0:02:07.4]} 12. Be3 {[%clk 0:02:13.3]} 12...
Re8 {[%clk 0:02:03.9]} 13. Rad1 {[%clk 0:02:11.4]} 13... Qa5 {[%clk 0:02:03.8]}
14. Bc5 {[%clk 0:01:50.6]} 14... Bf8 {[%clk 0:01:50.9]} 15. b4 {[%clk 0:01:45]}
15... Qxa3 {[%clk 0:01:47.3]} 16. Qd3 {[%clk 0:01:41.1]} 16... d5 {[%clk
0:01:41.8]} 17. Bb3 {[%clk 0:01:36.1]} 17... dxe4 {[%clk 0:01:31.8]} 18. Nxe4
{[%clk 0:01:34.5]} 18... Kg7 {[%clk 0:01:20.7]} 19. Ra1 {[%clk 0:01:33.1]} 19...
Qxa1 {[%clk 0:00:58.6]} 20. Rxa1 {[%clk 0:01:32.4]} 20... Nd5 {[%clk 0:00:59.1]}
21. Bxf8+ {[%clk 0:01:30.8]} 21... Rxf8 {[%clk 0:00:58.2]} 22. c3 {[%clk
0:01:27.4]} 22... Nf4 {[%clk 0:00:48.2]} 23. Qe3 {[%clk 0:01:26.4]} 23... e5
{[%clk 0:00:48.5]} 24. Bc4 {[%clk 0:01:09.3]} 24... Rd8 {[%clk 0:00:39.8]} 25.
Bf1 {[%clk 0:01:06.1]} 25... Bf5 {[%clk 0:00:39.1]} 26. Nc5 {[%clk 0:01:00.1]}
26... h5 {[%clk 0:00:21]} 27. h4 {[%clk 0:00:55.6]} 27... Bg4 {[%clk 0:00:15.5]}
28. Kh2 {[%clk 0:00:51.8]} 28... Nd5 {[%clk 0:00:15.9]} 29. Qe1 {[%clk
0:00:49.4]} 29... Nf4 {[%clk 0:00:16]} 30. g3 {[%clk 0:00:47.1]} 30... Nd5
{[%clk 0:00:15.4]} 31. Nxa6 {[%clk 0:00:40.8]} 31... Ra7 {[%clk 0:00:14.5]} 32.
Nc5 {[%clk 0:00:40]} 32... Rxa1 {[%clk 0:00:14.2]} 33. Qxa1 {[%clk 0:00:39.9]}
33... Bf3 {[%clk 0:00:13.7]} 34. Bg2 {[%clk 0:00:39.8]} 34... e4 {[%clk
0:00:12]} 35. Ne6+ {[%clk 0:00:39.7]} 1-0

[Event "Early-Titled-Tuesday-Blitz-March-12-2024"]
[Site "Chess.com"]
[Date "2024.03.12"]
[Round "6"]
[White "LeRoidesChampions"]
[Black "blitzking1729"]
[Result "1-0"]
[WhiteElo "2639"]
[BlackElo "2796"]
[TimeControl "180+1"]
[EndTime "9:05:22 PDT"]
[Termination "LeRoidesChampions won by resignation"]

1. e4 {[%clk 0:03:00.9]} 1... d6 {[%clk 0:02:58.6]} 2. d4 {[%clk 0:03:00]} 2...
Nf6 {[%clk 0:02:59.3]} 3. Nc3 {[%clk 0:03:00.2]} 3... e5 {[%clk 0:03:00.1]} 4.
Nf3 {[%clk 0:02:58.4]} 4... Nbd7 {[%clk 0:02:59.9]} 5. g4 {[%clk 0:02:57]} 5...
Nxg4 {[%clk 0:02:54.2]} 6. Rg1 {[%clk 0:02:55.1]} 6... exd4 {[%clk 0:02:54.2]}
7. Nxd4 {[%clk 0:02:48.7]} 7... Nde5 {[%clk 0:02:41.7]} 8. Bf4 {[%clk 0:02:35]}
8... g6 {[%clk 0:02:15.6]} 9. h3 {[%clk 0:02:29.1]} 9... Nf6 {[%clk 0:02:14.3]}
10. Qd2 {[%clk 0:02:25.5]} 10... c5 {[%clk 0:02:11.2]} 11. Bb5+ {[%clk
0:02:20.3]} 11... Bd7 {[%clk 0:02:06.5]} 12. Bxe5 {[%clk 0:02:04.4]} 12... dxe5
{[%clk 0:02:06.2]} 13. Bxd7+ {[%clk 0:02:03.9]} 13... Qxd7 {[%clk 0:02:04.9]}
14. Ndb5 {[%clk 0:02:04.4]} 14... Qxd2+ {[%clk 0:02:00]} 15. Kxd2 {[%clk
0:02:05.3]} 15... O-O-O+ {[%clk 0:02:00.1]} 16. Ke2 {[%clk 0:02:00.9]} 16... a6
{[%clk 0:01:58.8]} 17. Na3 {[%clk 0:01:42.4]} 17... b5 {[%clk 0:01:58.5]} 18.
Nd5 {[%clk 0:01:39.5]} 18... Nxe4 {[%clk 0:01:48]} 19. c4 {[%clk 0:01:39.6]}
19... b4 {[%clk 0:01:31.5]} 20. Nc2 {[%clk 0:01:38.3]} 20... f5 {[%clk
0:01:26.3]} 21. Rad1 {[%clk 0:01:29.7]} 21... Bh6 {[%clk 0:01:22.6]} 22. f3
{[%clk 0:01:25.6]} 22... Nd6 {[%clk 0:01:19.7]} 23. b3 {[%clk 0:01:25.1]} 23...
Nf7 {[%clk 0:01:10.5]} 24. a3 {[%clk 0:01:22.3]} 24... a5 {[%clk 0:01:10.6]} 25.
axb4 {[%clk 0:01:21.4]} 25... axb4 {[%clk 0:01:11.5]} 26. Ra1 {[%clk 0:01:22]}
26... Kb7 {[%clk 0:01:10.9]} 27. Ra5 {[%clk 0:01:21.6]} 27... Ra8 {[%clk
0:01:05]} 28. Rb5+ {[%clk 0:01:20.3]} 28... Kc6 {[%clk 0:00:21]} 29. Rb6+ {[%clk
0:01:16.8]} 29... Kd7 {[%clk 0:00:21.2]} 30. Rb7+ {[%clk 0:01:16.9]} 30... Kd6
{[%clk 0:00:19.6]} 31. Rxf7 {[%clk 0:01:16.2]} 31... Ra2 {[%clk 0:00:19.8]} 32.
Kd1 {[%clk 0:01:00.9]} 32... Rha8 {[%clk 0:00:20]} 33. Rxh7 {[%clk 0:00:58.5]}
33... Ra1+ {[%clk 0:00:14.5]} 34. Nxa1 {[%clk 0:00:58.7]} 34... Rxa1+ {[%clk
0:00:15.4]} 35. Ke2 {[%clk 0:00:59.4]} 35... Rxg1 {[%clk 0:00:16.1]} 36. Rxh6
{[%clk 0:00:59.4]} 36... Ke6 {[%clk 0:00:14.8]} 37. h4 {[%clk 0:00:58.9]} 37...
Kf7 {[%clk 0:00:14.8]} 38. Rh7+ {[%clk 0:00:59.2]} 38... Kf8 {[%clk 0:00:14.3]}
39. Nf6 {[%clk 0:00:59.5]} 39... Rb1 {[%clk 0:00:12.7]} 40. Rb7 {[%clk
0:00:55.5]} 40... Rxb3 {[%clk 0:00:12.6]} 41. Nd7+ {[%clk 0:00:56.1]} 41... Kg7
{[%clk 0:00:10.6]} 42. Nxc5+ {[%clk 0:00:56.7]} 1-0

[Event "Early-Titled-Tuesday-Blitz-March-12-2024"]
[Site "Chess.com"]
[Date "2024.03.12"]
[Round "6"]
[White "Fandorine"]
[Black "Danny_Billiards"]
[Result "1-0"]
[WhiteElo "2957"]
[BlackElo "2795"]
[TimeControl "180+1"]
[EndTime "9:05:26 PDT"]
[Termination "Fandorine won by checkmate"]

1. d4 {[%clk 0:02:38.4]} 1... Nf6 {[%clk 0:02:59.7]} 2. c4 {[%clk 0:02:35.4]}
2... g6 {[%clk 0:02:59.5]} 3. Nc3 {[%clk 0:02:34.7]} 3... Bg7 {[%clk 0:02:59.7]}
4. e4 {[%clk 0:02:34.9]} 4... d6 {[%clk 0:03:00.3]} 5. Be2 {[%clk 0:02:34.9]}
5... O-O {[%clk 0:02:59.9]} 6. Nf3 {[%clk 0:02:35.5]} 6... b6 {[%clk 0:02:59]}
7. O-O {[%clk 0:02:34]} 7... e5 {[%clk 0:02:59.3]} 8. Re1 {[%clk 0:02:31.9]}
8... exd4 {[%clk 0:02:58]} 9. Nxd4 {[%clk 0:02:31.9]} 9... Bb7 {[%clk
0:02:58.3]} 10. f3 {[%clk 0:02:31.9]} 10... Nfd7 {[%clk 0:02:58.1]} 11. Be3
{[%clk 0:02:27.1]} 11... Nc6 {[%clk 0:02:58.2]} 12. Nc2 {[%clk 0:02:26.6]} 12...
Bxc3 {[%clk 0:02:52.2]} 13. bxc3 {[%clk 0:02:25.5]} 13... Na5 {[%clk 0:02:43.9]}
14. Rb1 {[%clk 0:02:18]} 14... Ne5 {[%clk 0:02:38.3]} 15. Na3 {[%clk 0:01:57.8]}
15... Ba6 {[%clk 0:02:35]} 16. Rb5 {[%clk 0:01:33.7]} 16... Bxb5 {[%clk
0:02:33.1]} 17. cxb5 {[%clk 0:01:34.6]} 17... Nb7 {[%clk 0:02:12.5]} 18. Nc2
{[%clk 0:01:31.7]} 18... Nc5 {[%clk 0:02:10.3]} 19. Nb4 {[%clk 0:01:20.4]} 19...
Qe7 {[%clk 0:01:52.8]} 20. f4 {[%clk 0:01:06.6]} 20... Ned7 {[%clk 0:01:52.2]}
21. Bf3 {[%clk 0:01:05.1]} 21... f6 {[%clk 0:01:45.3]} 22. Nd5 {[%clk
0:00:56.5]} 22... Qd8 {[%clk 0:01:43.5]} 23. h4 {[%clk 0:00:54.8]} 23... a6
{[%clk 0:01:40.8]} 24. h5 {[%clk 0:00:51.5]} 24... axb5 {[%clk 0:01:40.3]} 25.
hxg6 {[%clk 0:00:51.6]} 25... hxg6 {[%clk 0:01:41.2]} 26. Qc2 {[%clk 0:00:44.9]}
26... Ra4 {[%clk 0:01:28.3]} 27. e5 {[%clk 0:00:40.6]} 27... f5 {[%clk
0:01:24.9]} 28. Bxc5 {[%clk 0:00:30.5]} 28... Nxc5 {[%clk 0:01:25]} 29. e6
{[%clk 0:00:31.4]} 29... Qh4 {[%clk 0:01:20.7]} 30. Re2 {[%clk 0:00:24.9]} 30...
Rfa8 {[%clk 0:01:08.7]} 31. e7 {[%clk 0:00:21.4]} 31... Re8 {[%clk 0:00:46.2]}
32. c4 {[%clk 0:00:14.6]} 32... Rxc4 {[%clk 0:00:43.1]} 33. Qb2 {[%clk
0:00:15.3]} 33... Nd3 {[%clk 0:00:35]} 34. Nf6+ {[%clk 0:00:15.5]} 34... Kf7
{[%clk 0:00:34.8]} 35. Bd5+ {[%clk 0:00:15.6]} 35... Kg7 {[%clk 0:00:25.1]} 36.
Nxe8+ {[%clk 0:00:16]} 36... Kh7 {[%clk 0:00:24.4]} 37. Qg7# {[%clk 0:00:16]}
1-0

[Event "Early-Titled-Tuesday-Blitz-March-12-2024"]
[Site "Chess.com"]
[Date "2024.03.12"]
[Round "6"]
[White "Alexander_Moskalenko"]
[Black "josephymwale33"]
[Result "1/2-1/2"]
[WhiteElo "2848"]
[BlackElo "2515"]
[TimeControl "180+1"]
[EndTime "9:05:27 PDT"]
[Termination "Game drawn by repetition"]

1. e4 {[%clk 0:02:59.1]} 1... e6 {[%clk 0:02:59.7]} 2. d4 {[%clk 0:02:55.8]}
2... d5 {[%clk 0:03:00]} 3. Nd2 {[%clk 0:02:55.6]} 3... Nf6 {[%clk 0:02:59.6]}
4. e5 {[%clk 0:02:53]} 4... Nfd7 {[%clk 0:02:59]} 5. f4 {[%clk 0:02:53.6]} 5...
c5 {[%clk 0:02:56.9]} 6. c3 {[%clk 0:02:53.8]} 6... Nc6 {[%clk 0:02:56.5]} 7.
Ndf3 {[%clk 0:02:54.3]} 7... Qb6 {[%clk 0:02:46.4]} 8. h4 {[%clk 0:02:54.1]}
8... cxd4 {[%clk 0:02:35.6]} 9. cxd4 {[%clk 0:02:55]} 9... Bb4+ {[%clk
0:02:35.3]} 10. Kf2 {[%clk 0:02:54.9]} 10... f6 {[%clk 0:02:33.7]} 11. Kg3
{[%clk 0:02:55]} 11... fxe5 {[%clk 0:02:32.7]} 12. fxe5 {[%clk 0:02:55.9]} 12...
Ne7 {[%clk 0:02:19.6]} 13. Bd3 {[%clk 0:02:47.6]} 13... Nf5+ {[%clk 0:02:02.8]}
14. Kh3 {[%clk 0:02:47.2]} 14... O-O {[%clk 0:02:01.2]} 15. Ne2 {[%clk
0:02:41.2]} 15... Be7 {[%clk 0:01:51.3]} 16. Bg5 {[%clk 0:02:36.6]} 16... Bxg5
{[%clk 0:01:17.1]} 17. hxg5 {[%clk 0:02:37.5]} 17... Rf7 {[%clk 0:01:02.9]} 18.
Qd2 {[%clk 0:02:31.8]} 18... Nf8 {[%clk 0:01:01.1]} 19. Ng3 {[%clk 0:02:29.3]}
19... Ng6 {[%clk 0:00:55.1]} 20. Nxf5 {[%clk 0:02:20.6]} 20... exf5 {[%clk
0:00:56]} 21. Kg3 {[%clk 0:02:21.2]} 21... f4+ {[%clk 0:00:56.2]} 22. Kf2 {[%clk
0:02:21.6]} 22... Bg4 {[%clk 0:00:53.2]} 23. Bxg6 {[%clk 0:02:20.4]} 23... Qxg6
{[%clk 0:00:50.8]} 24. Rh4 {[%clk 0:02:17.1]} 24... Bxf3 {[%clk 0:00:50.3]} 25.
gxf3 {[%clk 0:02:17.7]} 25... Rc8 {[%clk 0:00:46]} 26. Rc1 {[%clk 0:02:12.5]}
26... Rxc1 {[%clk 0:00:35.5]} 27. Qxc1 {[%clk 0:02:13.4]} 27... Qxg5 {[%clk
0:00:35.9]} 28. Qc8+ {[%clk 0:02:10.9]} 28... Rf8 {[%clk 0:00:34.3]} 29. Qe6+
{[%clk 0:02:09.1]} 29... Kh8 {[%clk 0:00:34.3]} 30. Rg4 {[%clk 0:02:03.3]} 30...
Qd8 {[%clk 0:00:23.2]} 31. Kg2 {[%clk 0:01:50.7]} 31... Qa5 {[%clk 0:00:19.7]}
32. Qe7 {[%clk 0:01:43.4]} 32... Qd2+ {[%clk 0:00:19.6]} 33. Kh3 {[%clk
0:01:43.3]} 33... Rg8 {[%clk 0:00:19.7]} 34. Qf7 {[%clk 0:01:39.8]} 34... Qf2
{[%clk 0:00:14.3]} 35. Qxf4 {[%clk 0:01:38.6]} 35... Qxb2 {[%clk 0:00:12.1]} 36.
Rg2 {[%clk 0:01:31.8]} 36... Qb1 {[%clk 0:00:10.3]} 37. e6 {[%clk 0:01:29.5]}
37... Qh1+ {[%clk 0:00:09.1]} 38. Qh2 {[%clk 0:01:23.9]} 38... Qf1 {[%clk
0:00:05.9]} 39. Kg4 {[%clk 0:01:22.1]} 39... Qd3 {[%clk 0:00:03.9]} 40. Qh5
{[%clk 0:01:18.5]} 40... Rf8 {[%clk 0:00:03.5]} 41. Kg3 {[%clk 0:01:16.1]} 41...
Qxd4 {[%clk 0:00:03.3]} 42. e7 {[%clk 0:01:11.1]} 42... Qf4+ {[%clk 0:00:03.2]}
43. Kf2 {[%clk 0:01:07.4]} 43... Qd2+ {[%clk 0:00:03.8]} 44. Kf1 {[%clk
0:01:05.9]} 44... Qd1+ {[%clk 0:00:04.1]} 45. Kf2 {[%clk 0:01:06.4]} 45... Qd2+
{[%clk 0:00:04.9]} 46. Kf1 {[%clk 0:01:06]} 46... Qd1+ {[%clk 0:00:05]} 47. Kf2
{[%clk 0:01:05.8]} 47... Qd2+ {[%clk 0:00:05.7]} 1/2-1/2